fUSD/lending_fUSD_20251011
["ID","MTS","AMOUNT","RATE_DAILY","PERIOD"]
[390808059,1760167795621,-500.0,0.00038355,30]
[390808060,1760167795650,-207.4,0.00038355,30]
[390808061,1760167795679,-500.0,0.00038355,30]
[390808062,1760167795708,-215.0738,0.00038355,30]
[390808063,1760167795738,-223.0315306,0.00038355,30]
[390808064,1760167795768,-231.28369723,0.00038355,30]
[390808065,1760167795797,-239.84119403,0.00038355,30]
[390808066,1760167795825,-150.0,0.00038356,30]
[390808067,1760167795856,-150.0,0.00038356,30]
[390808068,1760167795884,-150.0,0.00038356,30]
[390808069,1760167795913,-360.557,0.00038356,120]
[390808070,1760167795940,-500.0,0.00038356,120]
[390808071,1760167795969,-500.0,0.00038356,120]
[390808072,1760167795998,-500.0,0.00038356,120]
[390808073,1760167796026,-500.0,0.00038356,120]
[390808074,1760167796055,-500.0,0.00038356,120]
[390808075,1760167796082,-500.0,0.00038356,120]
[390808076,1760167796112,-500.0,0.00038356,120]
[390808077,1760167796142,-500.0,0.00038356,120]
[390808078,1760167796171,-291.06194866,0.00038356,120]
[390808079,1760167796200,-2344.42,0.00038356,120]
[390808080,1760167796231,-2344.42,0.00038356,120]
[390808081,1760167796262,-2344.42,0.00038356,120]
[390808082,1760167796292,-2344.42,0.00038356,120]
[390808083,1760167796322,-2344.42,0.00038356,120]
[390808084,1760167796354,-2344.42,0.00038356,120]
[390808085,1760167796384,-2344.42,0.00038356,120]
[390808086,1760167796415,-2344.42,0.00038356,120]
[390808087,1760167796443,-2344.42,0.00038356,120]
[390808088,1760167796470,-2344.42,0.00038356,120]
[390808089,1760167796499,-2344.42,0.00038356,120]
[390808090,1760167796527,-2344.42,0.00038356,120]
[390808091,1760167796555,-2344.42,0.00038356,120]
[390808092,1760167796582,-2344.42,0.00038356,120]
[390808093,1760167796611,-2344.42,0.00038356,120]
[390808094,1760167796639,-2344.42,0.00038356,120]
[390808095,1760167796942,-2344.42,0.00038356,120]
[390808096,1760167796972,-2344.42,0.00038356,120]
[390808097,1760167797002,-2344.42,0.00038356,120]
[390808098,1760167797030,-2344.42,0.00038356,120]
[390808099,1760167797058,-2344.42,0.00038356,120]
[390808100,1760167797085,-2344.42,0.00038356,120]
[390808101,1760167797115,-2344.42,0.00038356,120]
[390808102,1760167797142,-2344.6,0.00038356,120]
[390808103,1760167797170,-150.0,0.00038377,120]
[390808104,1760167797199,-173.0,0.000384,120]
[390808105,1760167797228,-3111.8276,0.00038488,30]
[390808106,1760167797256,-3000.0,0.000385,120]
[390808107,1760167797282,-23534.4388662,0.000385,30]
[390808108,1760167797308,-1678.93,0.00038657,120]
[390808109,1760167797335,-1678.93,0.00038657,120]
[390808110,1760167797364,-1678.93,0.00038657,120]
[390808111,1760167797390,-1678.93,0.00038657,120]
[390808112,1760167797419,-1678.93,0.00038657,120]
[390808113,1760167797447,-1678.93,0.00038657,120]
[390808114,1760167797473,-1678.93,0.00038657,120]
[390808115,1760167797501,-1678.93,0.00038657,120]
[390808116,1760167797529,-1678.93,0.00038657,120]
[390808117,1760167797556,-1678.93,0.00038657,120]
[390808118,1760167797583,-1678.93,0.00038657,120]
[390808119,1760167797614,-1678.93,0.00038657,120]
[390808120,1760167797641,-1678.93,0.00038657,120]
[390808121,1760167797668,-1678.93,0.00038657,120]
[390808122,1760167797694,-1678.93,0.00038657,120]
[390808123,1760167797722,-1678.93,0.00038657,120]
[390808124,1760167797749,-1678.93,0.00038657,120]
[390808125,1760167797776,-1678.93,0.00038657,120]
[390808126,1760167797804,-1678.93,0.00038657,120]
[390808127,1760167797830,-1678.93,0.00038657,120]
[390808128,1760167797859,-1678.93,0.00038657,120]
[390808129,1760167797885,-1678.93,0.00038657,120]
[390808130,1760167797911,-1678.93,0.00038657,120]
[390808131,1760167797939,-1679.00482436,0.00038657,120]
[390808132,1760167797965,-999.0,0.00038657,120]
[390808133,1760167797992,-999.0,0.00038657,120]
[390808134,1760167798020,-999.0,0.00038657,120]
[390808135,1760167798047,-999.0,0.00038657,120]
[390808136,1760167798073,-999.0,0.00038657,120]
[390808137,1760167798102,-999.0,0.00038657,120]
[390808138,1760167798129,-999.0,0.00038657,120]
[390808139,1760167798155,-999.0,0.00038657,120]
[390808140,1760167798179,-999.0,0.00038657,120]
[390808141,1760167798204,-231.48692149,0.00038657,120]
[390808142,1760167798230,-999.0,0.00038657,120]
[390808143,1760167798255,-999.0,0.00038657,120]
[390808144,1760167798281,-1103.18,0.00038657,120]
[390808145,1760167798307,-20000.0,0.0003868,120]
[390808146,1760167798334,-150.0,0.00038684,120]
[390808147,1760167798364,-3111.8276,0.00038688,30]
[390808148,1760167798392,-150.0,0.00038711,120]
[390808149,1760167798418,-1110.24923342,0.000388,120]
[390808150,1760167798445,-5688.99,0.000388,60]
[390808151,1760167798471,-152.0,0.000388,120]
[390808152,1760167798499,-3078.48866381,0.0003889,30]
[390808153,1760167798526,-2574.38027142,0.000389,120]
[390808154,1760167798552,-11542.52057326,0.000389,120]
[390808155,1760167798580,-5000.0,0.000389,120]
[390808156,1760167798612,-1444.0,0.00038904,90]
[390808157,1760167798639,-1200.0,0.0003896,42]
[390808158,1760167798666,-264884.61679008,0.00039,30]
[390808159,1760167798694,-5000.0,0.00039,30]
[390808160,1760167798725,-12186.32689054,0.00039,30]
[390808161,1760167798753,-6081.09,0.00039,30]
[390808162,1760167798778,-1499.83081424,0.00039,120]
[390808163,1760167798803,-2771.39115771,0.00039,120]
[390808164,1760167798828,-435.720683,0.00039,120]
[390808165,1760167798852,-3100.0,0.00039,120]
[390808166,1760167798877,-5000.0,0.00039,120]
[390808167,1760167798904,-4006.15468534,0.00039,120]
[390808168,1760167798931,-30000.0,0.00039,120]
[390808169,1760167798959,-24390.0,0.00039,120]
[390808171,1760167798986,-4881.06918948,0.00039,30]
[390808172,1760167799012,-1401148.91395332,0.00039,120]
[390808173,1760167799040,-150.0,0.00039012,120]
[390808174,1760167799067,-1167.93519825,0.00039041,30]
[390808175,1760167799094,-3111.8276,0.00039088,30]
[390808176,1760167799120,-9430.75243935,0.0003909,30]
[390808177,1760167799148,-173.0,0.000391,120]
[390808178,1760167799175,-500.0,0.00039232,60]
[390808179,1760167799202,-10000.0,0.0003926,120]
[390808180,1760167799228,-3111.8276,0.00039288,30]
[390808181,1760167799256,-150.0,0.0003932,120]
[390808182,1760167799284,-150.0,0.00039408,120]
[390808183,1760167799310,-3111.8276,0.00039488,30]
[390808184,1760167799336,-80713.4354026,0.000395,30]
[390808185,1760167799366,-1500.0,0.0003963,42]
[390808186,1760167799395,-3111.8276,0.00039688,30]
[390808187,1760167799428,-9507.71,0.00039726,120]
[390808188,1760167799457,-10000.0,0.00039726,120]
[390808189,1760167801997,500.0,0.00013665,2]
[390808190,1760167803066,475.23572958,0.00027,30]
[390808192,1760167809318,150.0,0.00030565,30]
[390808193,1760167812111,475.23572958,0.0003,30]
[390808194,1760167812266,180.0,0.00039088,120]
[390808195,1760167812514,150.0,0.00030565,30]
[390808196,1760167812939,1000.0,0.00039726,30]
[390808197,1760167813019,161.84506399,0.00039088,120]
[390808198,1760167814383,285.865,0.0003826,30]
[390808199,1760167815364,1118.09279443,0.00030565,30]
[390808200,1760167816838,1568.95312205,0.00030565,30]
[390808201,1760167819686,274250.4502,0.00030673,30]
[390808202,1760167820572,-97.6,0.00013979,15]
[390808203,1760167820594,-1013.84,0.00013979,15]
[390808204,1760167820619,-1013.84,0.00013979,15]
[390808205,1760167820642,-1013.84,0.00013979,15]
[390808206,1760167820666,-1013.84,0.00013979,15]
[390808207,1760167820688,-22.04,0.00013979,15]
[390808226,1760167831596,-195.0,0.00013773,2]
[390808229,1760167831605,-300.0,0.00013773,2]
[390808232,1760167831615,-1670.94410896,0.000138,5]
[390808238,1760167831649,-1212.228755,0.000138,5]
[390808239,1760167831830,-1716.82713604,0.000138,5]
[390808240,1760167831840,-300.0,0.0001381,2]
[390808241,1760167831849,-300.0,0.0001381,2]
[390808242,1760167831858,-378.9,0.00013828,2]
[390808243,1760167831868,-35.38871965,0.00013865,2]
[390808244,1760167831881,-157.81128035,0.00013865,2]
[390808245,1760167831891,-193.2,0.00013867,2]
[390808246,1760167831899,-193.2,0.00013869,2]
[390808247,1760167831909,-300.0,0.00013869,2]
[390808248,1760167831918,-150.0,0.00013869,2]
[390808249,1760167831927,-1422.94275788,0.0001387,2]
[390808251,1760167831978,-26818.19186281,0.0001387,2]
[390808252,1760167831987,-14545.03397803,0.0001387,2]
[390808253,1760167831996,-514.54312979,0.0001387,2]
[390808254,1760167832006,-200.18589303,0.0001387,2]
[390808255,1760167832016,-28241.13462061,0.00013871,2]
[390808256,1760167832026,-14545.03397799,0.00013871,2]
[390808257,1760167832036,-621.78829552,0.00013872,2]
[390808258,1760167832046,-151.0,0.00013872,2]
[390808259,1760167832056,-248.71531821,0.00013872,2]
[390808260,1760167832066,-897.01946672,0.00013872,2]
[390808261,1760167832077,-16107.20635174,0.00013872,2]
[390808275,1760167837557,-323.20519007,0.00013869,2]
[390808277,1760167837567,-151.08764944,0.00013869,2]
[390808278,1760167837576,-247.85575287,0.00013869,2]
[390808279,1760167837586,-500.0,0.00013869,2]
[390808280,1760167837595,-500.0,0.00013869,2]
[390808281,1760167837604,-500.0,0.00013869,2]
[390808282,1760167837614,-70.14512851,0.00013869,2]
[390808283,1760167837627,-241.76764994,0.00013869,2]
[390808284,1760167837637,-104.59853591,0.00013872,2]
[390808285,1760167837652,-7207.8825,0.00013872,2]
[390808286,1760167837675,-3924.42776624,0.00013872,2]
[390808287,1760167837685,-14545.03397799,0.00013872,2]
[390808288,1760167837694,-28241.13462061,0.00013873,2]
[390808289,1760167837704,-14545.03397799,0.00013873,2]
[390808290,1760167837713,-28241.13462061,0.00013874,2]
[390808291,1760167837722,-14545.03397799,0.00013874,2]
[390808292,1760167837732,-28241.13462061,0.00013876,2]
[390808293,1760167837741,-14545.03397799,0.00013876,2]
[390808294,1760167837750,-28241.13462061,0.00013877,2]
[390808295,1760167837759,-14545.03397799,0.00013877,2]
[390808296,1760167837768,-28241.13462061,0.00013878,2]
[390808297,1760167837778,-14545.03397799,0.00013878,2]
[390808298,1760167837787,-28241.13462061,0.00013879,2]
[390808299,1760167837797,-14545.03397799,0.00013879,2]
[390808300,1760167837806,-999.99,0.00013879,2]
[390808301,1760167837815,-150.99,0.00013879,2]
[390808302,1760167837825,-41303.1,0.00013879,2]
[390808303,1760167837834,-2984.2271,0.0001388,2]
[390808304,1760167837843,-19910.1205,0.0001388,2]
[390808305,1760167837853,-970.1478,0.0001388,2]
[390808306,1760167837862,-2000.0,0.0001388,2]
[390808307,1760167837871,-869.82101703,0.0001388,2]
[390808308,1760167837884,-1000.0,0.0001388,2]
[390808309,1760167837893,-358.91515336,0.0001388,2]
[390808310,1760167837902,-1080.9140497,0.0001388,2]
[390808311,1760167837911,-28241.13462061,0.0001388,2]
[390808312,1760167837920,-14545.03397799,0.0001388,2]
[390808314,1760167837930,-261.15901427,0.0001388,2]
[390808316,1760167837939,-1418.22745173,0.0001388,2]
[390808318,1760167837948,-3863.74227548,0.0001388,2]
[390808320,1760167837957,-4600.0,0.000139,5]
[390808322,1760167837966,-514.69936494,0.00013911,2]
[390808325,1760167837976,-151.0,0.00013967,2]
[390808328,1760167837985,-360739.01447501,0.0001397,2]
[390808331,1760167837994,-176387.10301,0.0001397,2]
[390808333,1760167838003,-1315.41887715,0.0001397,2]
[390808335,1760167838012,-1315.41887715,0.0001397,2]
[390808337,1760167838021,-1315.41887715,0.0001397,2]
[390808339,1760167838030,-200.0,0.00013972,2]
[390808341,1760167838039,-500.0,0.00013972,2]
[390808343,1760167838048,-151.0,0.00013972,2]
[390808345,1760167838057,-500.0,0.00013972,2]
[390808347,1760167838067,-151.0,0.00013972,2]
[390808349,1760167838076,-500.0,0.00013972,2]
[390808351,1760167838085,-151.0,0.00013972,2]
[390808353,1760167838094,-500.0,0.00013972,2]
[390808355,1760167838104,-151.0,0.00013972,2]
[390808357,1760167838113,-500.0,0.00013972,2]
[390808359,1760167838123,-646.65982734,0.00013972,2]
[390808361,1760167838133,-151.0,0.00013972,2]
[390808363,1760167838143,-151.0,0.00013972,2]
[390808365,1760167838152,-500.0,0.00013972,2]
[390808367,1760167838161,-151.0,0.00013972,2]
[390808369,1760167838170,-500.0,0.00013972,2]
[390808371,1760167838179,-322.6107,0.00013972,2]
[390808373,1760167838188,-151.0,0.00013972,2]
[390808375,1760167838197,-500.0,0.00013972,2]
[390808377,1760167838207,-151.0,0.00013972,2]
[390808379,1760167838216,-500.0,0.00013972,2]
[390808381,1760167838225,-151.0,0.00013972,2]
[390808383,1760167838235,-500.0,0.00013972,2]
[390808385,1760167838244,-500.0,0.00013972,2]
[390808387,1760167838254,-151.0,0.00013972,2]
[390808390,1760167838265,-500.0,0.00013972,2]
[390808392,1760167838274,-151.0,0.00013972,2]
[390808394,1760167838283,-500.0,0.00013972,2]
[390808396,1760167838292,-151.0,0.00013972,2]
[390808398,1760167838301,-151.0,0.00013972,2]
[390808400,1760167838311,-500.0,0.00013972,2]
[390808402,1760167838320,-200.0,0.00013972,2]
[390808404,1760167838329,-200.0,0.00013972,2]
[390808406,1760167838338,-500.0,0.00013973,2]
[390808408,1760167838347,-165.19186735,0.00013973,2]
[390808410,1760167838356,-500.0,0.00013973,2]
[390808412,1760167838365,-500.0,0.00013973,2]
[390808414,1760167838376,-500.0,0.00013973,2]
[390808416,1760167838385,-500.0,0.00013973,2]
[390808418,1760167838394,-500.0,0.00013973,2]
[390808420,1760167838403,-500.0,0.00013973,2]
[390808422,1760167838416,-500.0,0.00013973,2]
[390808424,1760167838425,-501.12372812,0.00013973,2]
[390808426,1760167838434,-500.0,0.00013973,2]
[390808428,1760167838443,-500.0,0.00013973,2]
[390808430,1760167838453,-174.13035274,0.00013973,2]
[390808432,1760167838462,-500.0,0.00013973,2]
[390808434,1760167838471,-500.0,0.00013973,2]
[390808436,1760167838481,-500.0,0.00013973,2]
[390808439,1760167838494,-500.0,0.00013973,2]
[390808440,1760167838503,-500.0,0.00013973,2]
[390808484,1760167838885,-500.0,0.00013973,2]
[390808486,1760167838895,-500.0,0.00013973,2]
[390808488,1760167838904,-159.83474733,0.00013973,2]
[390808490,1760167838913,-500.0,0.00013973,2]
[390808492,1760167838923,-500.0,0.00013973,2]
[390808494,1760167838932,-213.61178497,0.00013973,2]
[390808496,1760167838941,-500.0,0.00013973,2]
[390808498,1760167838951,-500.0,0.00013973,2]
[390808500,1760167838961,-505.10858255,0.00013973,2]
[390808502,1760167838970,-500.0,0.00013973,2]
[390808504,1760167838980,-507.85402909,0.00013973,2]
[390808506,1760167838990,-500.0,0.00013973,2]
[390808508,1760167839000,-500.9552435,0.00013973,2]
[390808510,1760167839010,-500.0,0.00013973,2]
[390808512,1760167839020,-151.0,0.00013977,2]
[390808514,1760167839030,-23584.59,0.00013979,2]
[390808516,1760167839040,-666.0,0.00013979,2]
[390808518,1760167839050,-669.93898507,0.00013979,2]
[390808520,1760167839060,-1493.85012699,0.00013979,5]
[390808522,1760167839069,-1000.0,0.00013979,2]
[390808524,1760167839079,-963.80045347,0.00013979,2]
[390808526,1760167839088,-991.8,0.00013979,15]
[390808528,1760167839097,-1013.84,0.00013979,15]
[390808530,1760167839107,-1013.84,0.00013979,15]
[390808532,1760167839117,-1013.84,0.00013979,15]
[390808535,1760167839130,-1014.07535633,0.00013979,15]
[390808536,1760167839139,-150.0,0.00013979,2]
[390808538,1760167839149,-8222006.51024887,0.0001398,2]
[390808541,1760167839159,-500.0,0.0001398,2]
[390808542,1760167839170,-500.0,0.0001398,2]
[390808545,1760167839180,-808.18,0.00014,2]
[390808547,1760167839191,-819.88,0.00014,2]
[390808549,1760167839200,-537.33,0.00014,2]
[390808551,1760167839211,-1616.2,0.00014,2]
[390808553,1760167839222,-826.36,0.00014,2]
[390808555,1760167839232,-1484.48,0.00014,2]
[390808557,1760167839242,-391.94,0.00014,2]
[390808559,1760167839252,-826.46,0.00014,2]
[390808561,1760167839261,-1090.03,0.00014,2]
[390808563,1760167839270,-413.23,0.00014,2]
[390808565,1760167839280,-413.23,0.00014,2]
[390808567,1760167839290,-808.18,0.00014,2]
[390808569,1760167839300,-474.32,0.00014,2]
[390808571,1760167839309,-413.23,0.00014,2]
[390808573,1760167839318,-168.07,0.00014,2]
[390808575,1760167839329,-948.55,0.00014,2]
[390808579,1760167839338,-150.0,0.00014,2]
[390808582,1760167839347,-258.477011,0.00014,2]
[390808585,1760167839356,-948.64,0.00014,2]
[390808588,1760167839365,-415.48,0.00014,2]
[390808591,1760167839375,-151.0,0.00014008,2]
[390808593,1760167839386,-9718.9988278,0.00014011,2]
[390808595,1760167839395,-356857.759327,0.00014011,2]
[390808597,1760167839404,-4710.9606989,0.00014011,2]
[390808599,1760167839415,-337.69418,0.00014011,2]
[390808600,1760167839426,-5434.960506,0.00014011,2]
[390808601,1760167839435,-1049.0427412,0.00014032,2]
[390808602,1760167839444,-208.79425485,0.00014036,2]
[390808603,1760167839454,-429.0,0.00014052,2]
[390808604,1760167839463,-723.0,0.00014072,2]
[390808605,1760167839472,-1395.85,0.000141,2]
[390808607,1760167839481,-2397.52,0.000141,2]
[390808609,1760167839490,-474.4,0.000141,2]
[390808611,1760167839500,-156.72,0.000141,2]
[390808612,1760167839509,-1198.76,0.000141,2]
[390808613,1760167839518,-175.87,0.000141,2]
[390808614,1760167839527,-576.0,0.00014107,2]
[390808615,1760167839537,-840.0,0.00014107,2]
[390808616,1760167839546,-190.0,0.00014113,2]
[390808617,1760167839555,-1095.0,0.00014122,2]
[390808618,1760167839564,-869.82101702,0.00014135,2]
[390808619,1760167839574,-1964.0,0.00014142,2]
[390808620,1760167839583,-543.0,0.00014151,2]
[390808622,1760167839591,-467.60634797,0.00014164,2]
[390808623,1760167839601,-1286.0,0.00014177,2]
[390808625,1760167839610,-337.0,0.00014177,2]
[390808627,1760167839619,-349.36695947,0.00014183,2]
[390808629,1760167839631,-1871.0,0.00014192,2]
[390808631,1760167839640,-302.61,0.00014196,2]
[390808633,1760167839650,-854.13393831,0.00014196,2]
[390808636,1760167839660,-2880.0,0.0001421,2]
[390808637,1760167839669,-1170.0,0.00014212,2]
[390808639,1760167839679,-210.32,0.00014219,2]
[390808642,1760167839689,-643.0,0.00014248,2]
[390808644,1760167839698,-1329.0,0.00014248,2]
[390808646,1760167839707,-500.0,0.00014254,2]
[390808647,1760167839717,-500.0,0.00014254,2]
[390808649,1760167839726,-1000.0,0.00014258,2]
[390808652,1760167839736,-863.0,0.00014282,2]
[390808653,1760167839745,-200.0,0.00014285,2]
[390808655,1760167839755,-413.23,0.00014298,2]
[390808657,1760167839767,-2606.30926695,0.000143,2]
[390808659,1760167839776,-151.66,0.000143,2]
[390808661,1760167839785,-467.60634797,0.00014311,2]
[390808663,1760167839794,-506.0,0.00014318,2]
[390808665,1760167839803,-1513.0,0.00014318,2]
[390808667,1760167839814,-1475.0,0.0001433,2]
[390808670,1760167839823,-10094.9867603,0.00014345,2]
[390808672,1760167839834,-774.0,0.00014352,2]
[390808674,1760167839844,-452.0,0.00014361,2]
[390808676,1760167839854,-5888.0,0.00014365,2]
[390808678,1760167839863,-150.0,0.00014387,2]
[390808680,1760167839872,-150.0,0.00014387,2]
[390808682,1760167839882,-150.0,0.00014387,2]
[390808684,1760167839891,-500.0,0.00014387,2]
[390808686,1760167839901,-150.0,0.00014387,2]
[390808687,1760167839910,-500.0,0.00014387,2]
[390808689,1760167839919,-150.0,0.00014387,2]
[390808691,1760167839929,-500.0,0.00014387,2]
[390808693,1760167839939,-150.0,0.00014387,2]
[390808695,1760167839948,-150.0,0.00014387,2]
[390808697,1760167839957,-150.0,0.00014387,2]
[390808699,1760167839966,-1152.0,0.00014387,2]
[390808701,1760167839975,-150.0,0.00014387,2]
[390808703,1760167839985,-150.0,0.00014387,2]
[390808705,1760167839994,-546.0,0.00014387,2]
[390808707,1760167840004,-500.0,0.00014387,2]
[390808709,1760167840013,-500.0,0.00014387,2]
[390808711,1760167840022,-500.0,0.00014387,2]
[390808713,1760167840032,-150.0,0.00014387,2]
[390808715,1760167840041,-150.0,0.00014387,2]
[390808717,1760167840050,-150.0,0.00014387,2]
[390808719,1760167840060,-201.48943055,0.00014387,2]
[390808721,1760167840069,-500.0,0.00014387,2]
[390808723,1760167840079,-500.0,0.00014387,2]
[390808725,1760167840089,-619.0,0.00014387,2]
[390808727,1760167840098,-500.0,0.00014387,2]
[390808729,1760167840107,-150.0,0.00014387,2]
[390808731,1760167840116,-500.0,0.00014387,2]
[390808733,1760167840126,-150.0,0.00014387,2]
[390808735,1760167840136,-500.0,0.00014387,2]
[390808737,1760167840144,-150.0,0.00014387,2]
[390808739,1760167840154,-150.0,0.00014387,2]
[390808741,1760167840163,-150.0,0.00014387,2]
[390808743,1760167840172,-500.0,0.00014387,2]
[390808745,1760167840181,-500.0,0.00014387,2]
[390808747,1760167840191,-500.0,0.00014387,2]
[390808749,1760167840200,-150.0,0.00014388,2]
[390808751,1760167840209,-150.0,0.00014388,2]
[390808753,1760167840219,-150.0,0.00014388,2]
[390808755,1760167840228,-150.0,0.00014388,2]
[390808757,1760167840237,-150.0,0.00014388,2]
[390808759,1760167840246,-150.0,0.00014388,2]
[390808761,1760167840256,-150.0,0.00014388,2]
[390808763,1760167840265,-150.0,0.00014388,2]
[390808765,1760167840275,-500.0,0.00014388,2]
[390808767,1760167840284,-150.0,0.00014388,2]
[390808769,1760167840294,-150.0,0.00014388,2]
[390808771,1760167840303,-1476.0,0.00014388,2]
[390808773,1760167840313,-869.82101702,0.0001439,2]
[390808775,1760167840322,-4060.01143357,0.0001439,2]
[390808777,1760167840331,-1080.91404968,0.0001439,2]
[390808779,1760167840340,-261.15901427,0.0001439,2]
[390808781,1760167840350,-1418.22745172,0.0001439,2]
[390808783,1760167840359,-3863.74227546,0.0001439,2]
[390808785,1760167840367,-200.93028154,0.000144,2]
[390808787,1760167840379,-1000.0,0.000144,2]
[390808789,1760167840388,-2242.43,0.000144,2]
[390808791,1760167840398,-1198.76,0.000144,2]
[390808793,1760167840407,-300.0,0.000144,2]
[390808795,1760167840417,-169.53,0.000144,2]
[390808797,1760167840426,-1475.0,0.00014406,2]
[390808799,1760167840435,-199.89764461,0.0001442,2]
[390808801,1760167840444,-807.0,0.00014422,2]
[390808803,1760167840454,-500.0,0.00014442,2]
[390808805,1760167840463,-500.0,0.00014442,2]
[390808807,1760167840472,-150.0,0.00014442,2]
[390808809,1760167840482,-1152.0,0.00014442,2]
[390808810,1760167840493,-150.0,0.00014442,2]
[390808813,1760167840503,-546.0,0.00014442,2]
[390808814,1760167840511,-500.0,0.00014442,2]
[390808817,1760167840521,-500.0,0.00014442,2]
[390808818,1760167840530,-500.0,0.00014442,2]
[390808820,1760167840540,-500.0,0.00014442,2]
[390808822,1760167840549,-500.0,0.00014442,2]
[390808824,1760167840558,-619.0,0.00014442,2]
[390808826,1760167840567,-500.0,0.00014442,2]
[390808828,1760167840577,-150.0,0.00014442,2]
[390808830,1760167840586,-500.0,0.00014442,2]
[390808832,1760167840595,-150.23117453,0.00014442,2]
[390808834,1760167840604,-500.0,0.00014442,2]
[390808836,1760167840613,-150.0,0.00014442,2]
[390808838,1760167840623,-500.0,0.00014442,2]
[390808840,1760167840634,-500.0,0.00014442,2]
[390808842,1760167840644,-500.0,0.00014442,2]
[390808844,1760167840653,-150.0,0.00014443,2]
[390808846,1760167840663,-150.57463183,0.00014443,2]
[390808848,1760167840672,-150.0,0.00014443,2]
[390808850,1760167840681,-150.0,0.00014443,2]
[390808852,1760167840691,-500.0,0.00014443,2]
[390808854,1760167840700,-467.60634797,0.00014458,2]
[390808856,1760167840710,-3762.31545811,0.00014465,2]
[390808858,1760167840719,-500.0,0.00014497,2]
[390808860,1760167840728,-500.0,0.00014497,2]
[390808862,1760167840738,-150.0,0.00014497,2]
[390808865,1760167840747,-1152.0,0.00014497,2]
[390808867,1760167840757,-200.0,0.00014497,2]
[390808869,1760167840766,-546.0,0.00014497,2]
[390808870,1760167840775,-500.0,0.00014497,2]
[390808873,1760167840785,-150.0,0.00014497,2]
[390808875,1760167840794,-500.0,0.00014497,2]
[390808877,1760167840803,-500.0,0.00014497,2]
[390808879,1760167840812,-500.0,0.00014497,2]
[390808881,1760167840821,-619.0,0.00014497,2]
[390808883,1760167840830,-500.0,0.00014497,2]
[390808885,1760167840839,-150.0,0.00014497,2]
[390808887,1760167840848,-500.0,0.00014497,2]
[390808889,1760167840858,-500.0,0.00014497,2]
[390808891,1760167840867,-150.0,0.00014497,2]
[390808893,1760167840877,-500.0,0.00014497,2]
[390808895,1760167840886,-500.0,0.00014497,2]
[390808897,1760167840895,-500.0,0.00014497,2]
[390808899,1760167840904,-150.0,0.00014498,2]
[390808901,1760167840913,-150.0,0.00014498,2]
[390808903,1760167840922,-200.0,0.00014498,2]
[390808905,1760167840931,-500.0,0.00014498,2]
[390808907,1760167840940,-166.66,0.00014506,2]
[390808909,1760167840950,-200.0,0.0001452,2]
[390808911,1760167840959,-200.0,0.0001452,2]
[390808913,1760167840968,-1000.0,0.00014521,2]
[390808915,1760167840977,-597.69949941,0.00014521,2]
[390808917,1760167840986,-503.19308079,0.00014521,2]
[390808919,1760167840995,-1000.0,0.00014521,2]
[390808921,1760167841004,-1000.0,0.00014521,2]
[390808923,1760167841013,-1000.0,0.00014521,2]
[390808925,1760167841023,-854.47954189,0.00014521,2]
[390808927,1760167841032,-1000.0,0.00014521,2]
[390808929,1760167841040,-501.58960617,0.00014521,2]